fUST/lending_fUST_20250720
["ID","MTS","AMOUNT","RATE_DAILY","PERIOD"]
[373413765,1752990651663,-1051.82,0.00022944,2]
[373413766,1752990651677,-4205.3,0.00022945,2]
[373413767,1752990651687,-1521.82,0.00022945,2]
[373413768,1752990651697,-518.41,0.00022986,2]
[373413769,1752990651708,-160.0,0.00023014,7]
[373413770,1752990651718,-402.24706456,0.00023038,2]
[373413771,1752990651727,-1795.05,0.00023045,2]
[373413772,1752990651737,-595.67,0.00023045,2]
[373413773,1752990651746,-500.0,0.00023073,2]
[373413774,1752990651756,-518.41,0.00023086,2]
[373413775,1752990651765,-1219.99,0.000231,2]
[373413776,1752990651774,-831.66,0.00023146,2]
[373413777,1752990651784,-568.32,0.00023146,2]
[373413778,1752990651793,-873.95,0.00023146,2]
[373413779,1752990651803,-151.0,0.00023173,2]
[373413780,1752990651814,-215.0738,0.00023173,2]
[373413781,1752990651823,-151.0,0.00023173,2]
[373413782,1752990651833,-151.0,0.00023173,2]
[373413783,1752990651842,-151.0,0.00023173,2]
[373413784,1752990651852,-151.0,0.00023173,2]
[373413785,1752990651861,-151.0,0.00023173,2]
[373413786,1752990651870,-151.0,0.00023173,2]
[373413787,1752990651879,-151.0,0.00023173,2]
[373413788,1752990651889,-151.0,0.00023173,2]
[373413789,1752990651898,-151.0,0.00023173,2]
[373413790,1752990651908,-151.0,0.00023173,2]
[373413791,1752990651918,-151.0,0.00023173,2]
[373413792,1752990651927,-151.0,0.00023173,2]
[373413793,1752990651937,-151.0,0.00023173,2]
[373413794,1752990651946,-151.0,0.00023173,2]
[373413795,1752990651957,-151.0,0.00023173,2]
[373413796,1752990651967,-151.0,0.00023173,2]
[373413797,1752990651976,-151.0,0.00023173,2]
[373413798,1752990651985,-151.0,0.00023173,2]
[373413799,1752990651994,-151.0,0.00023173,2]
[373413800,1752990652003,-25000.0,0.00023173,2]
[373413801,1752990652013,-16891.41418974,0.00023173,2]
[373413802,1752990652022,-518.41,0.00023186,7]
[373413803,1752990652031,-65203.06,0.000232,2]
[373413804,1752990652040,-6445.0,0.000232,7]
[373413805,1752990652050,-1033.72,0.000232,7]
[373413806,1752990652058,-3243.69,0.000232,7]
[373413807,1752990652067,-1089.66,0.00023216,2]
[373413808,1752990652077,-770.1,0.00023216,2]
[373413809,1752990652086,-1867.66,0.00023216,2]
[373413810,1752990652096,-460.0,0.00023218,2]
[373413811,1752990652105,-674.32,0.00023218,2]
[373413812,1752990652114,-1033.35,0.00023218,2]
[373413813,1752990652123,-1051.82,0.00023218,2]
[373413814,1752990652133,-4205.3,0.00023219,2]
[373413815,1752990652142,-1521.82,0.00023219,2]
[373413816,1752990652151,-518.41,0.00023286,3]
[373413817,1752990652161,-1795.05,0.00023319,2]
[373413818,1752990652170,-595.67,0.00023319,2]
[373413819,1752990652179,-518.41,0.00023386,5]
[373413820,1752990652189,-500.82510006,0.000234,2]
[373413821,1752990652199,-647.0,0.0002341,2]
[373413822,1752990652209,-2156.0,0.0002341,2]
[373413823,1752990652218,-968.0,0.0002341,2]
[373413824,1752990652227,-150.103,0.0002341,2]
[373413825,1752990652237,-407.0,0.0002341,2]
[373413826,1752990652246,-831.66,0.0002342,2]
[373413827,1752990652256,-568.32,0.0002342,2]
[373413828,1752990652266,-873.95,0.0002342,2]
[373413829,1752990652278,-429.4514592,0.00023479,2]
[373413830,1752990652287,-429.4514592,0.00023479,2]
[373413831,1752990652297,-429.4514592,0.00023479,2]
[373413832,1752990652307,-429.4514592,0.00023479,2]
[373413833,1752990652316,-164.00619825,0.00023479,2]
[373413834,1752990652325,-518.41,0.00023486,3]
[373413835,1752990652334,-1089.66,0.0002349,2]
[373413836,1752990652343,-770.1,0.0002349,2]
[373413837,1752990652353,-1867.66,0.0002349,2]
[373413838,1752990652362,-460.0,0.00023492,2]
[373413839,1752990652371,-674.32,0.00023492,2]
[373413840,1752990652381,-1033.35,0.00023492,2]
[373413841,1752990652390,-1051.82,0.00023492,2]
[373413842,1752990652401,-4205.3,0.00023493,2]
[373413843,1752990652410,-1521.82,0.00023493,2]
[373413844,1752990652420,-200.0,0.00023561,2]
[373413845,1752990652429,-200.0,0.00023561,2]
[373413846,1752990652439,-200.0,0.00023561,2]
[373413847,1752990652449,-200.0,0.00023561,2]
[373413848,1752990652459,-200.0,0.00023561,2]
[373413849,1752990652469,-200.0,0.00023561,2]
[373413850,1752990652478,-200.0,0.00023561,2]
[373413851,1752990652488,-200.0,0.00023561,2]
[373413852,1752990652497,-200.0,0.00023561,2]
[373413853,1752990652511,-200.0,0.00023561,2]
[373413854,1752990652521,-289.26910109,0.00023561,2]
[373413855,1752990652531,-518.41,0.00023586,6]
[373413856,1752990652540,-1795.05,0.00023593,2]
[373413857,1752990652549,-595.67,0.00023593,2]
[373413858,1752990652559,-160.0,0.0002361,3]
[373413859,1752990652568,-518.41,0.00023686,7]
[373413860,1752990652577,-831.66,0.00023694,2]
[373413861,1752990652587,-568.32,0.00023694,2]
[373413862,1752990652596,-873.95,0.00023694,2]
[373413863,1752990652605,-1089.78,0.00023764,2]
[373413864,1752990652615,-770.16,0.00023764,2]
[373413865,1752990652624,-1867.87,0.00023764,2]
[373413866,1752990652635,-171.29,0.00023766,2]
[373413867,1752990652644,-674.53745489,0.00023766,2]
[373413868,1752990652653,-1033.48367739,0.00023766,2]
[373413869,1752990652662,-1052.04,0.00023766,2]
[373413870,1752990652672,-4205.30245524,0.00023767,2]
[373413871,1752990652681,-1522.0570373,0.00023767,2]
[373413872,1752990652690,-164.00619825,0.00023781,2]
[373413873,1752990652700,-178.1416697,0.00023781,2]
[373413874,1752990652709,-153.0,0.00023781,2]
[373413875,1752990652719,-306.0,0.00023781,2]
[373413876,1752990652728,-159.8396335,0.00023781,2]
[373413877,1752990652738,-577.2483964,0.00023781,2]
[373413878,1752990652747,-153.0,0.00023781,2]
[373413879,1752990652756,-178.1416697,0.00023781,2]
[373413880,1752990652766,-577.2483964,0.00023781,2]
[373413881,1752990652775,-159.8396335,0.00023781,2]
[373413882,1752990652784,-178.1416697,0.00023781,2]
[373413883,1752990652794,-577.2483964,0.00023781,2]
[373413884,1752990652802,-159.8396335,0.00023781,2]
[373413885,1752990652812,-153.0,0.00023781,2]
[373413886,1752990652821,-159.8396335,0.00023781,2]
[373413887,1752990652831,-178.1416697,0.00023781,2]
[373413888,1752990652840,-577.2483964,0.00023781,2]
[373413889,1752990652850,-178.1416697,0.00023781,2]
[373413890,1752990652860,-159.8396335,0.00023781,2]
[373413891,1752990652869,-166.1771152,0.00023781,2]
[373413892,1752990652879,-153.0,0.00023781,2]
[373413893,1752990652889,-158.101088,0.00023781,2]
[373413894,1752990652899,-177.1379916,0.00023781,2]
[373413895,1752990652909,-518.41,0.00023786,4]
[373413896,1752990652918,-3642.80508413,0.00023788,2]
[373413897,1752990652928,-1795.13,0.00023867,2]
[373413898,1752990652937,-595.84105152,0.00023867,2]
[373413899,1752990652947,-518.48850001,0.00023886,4]
[373413900,1752990652956,-159199.25086314,0.00023888,2]
[373413901,1752990652965,-189.644247,0.00023888,7]
[373413902,1752990652975,-152.028428,0.00023888,7]
[373413903,1752990652984,-194.952205,0.00023888,7]
[373413904,1752990652993,-194.952205,0.00023888,7]
[373413905,1752990653002,-151.0,0.00023888,7]
[373413906,1752990653013,-151.0,0.00023888,7]
[373413907,1752990653022,-152.473751,0.00023888,7]
[373413908,1752990653031,-151.0,0.00023888,7]
[373413909,1752990653042,-298.547373,0.00023888,7]
[373413910,1752990653051,-151.0,0.00023888,7]
[373413911,1752990653060,-298.547373,0.00023888,7]
[373413912,1752990653070,-151.0,0.00023888,7]
[373413913,1752990653080,-151.0,0.00023888,7]
[373413914,1752990653091,-249.683808,0.00023888,7]
[373413915,1752990653100,-202.307105,0.00023888,7]
[373413916,1752990653110,-249.683808,0.00023888,7]
[373413917,1752990653119,-202.307105,0.00023888,7]
[373413918,1752990653128,-151.0,0.00023888,7]
[373413919,1752990653137,-500.0,0.0002389,2]
[373413920,1752990653146,-2109.81505385,0.000239,2]
[373413921,1752990653156,-600.0,0.00023904,2]
[373413922,1752990653165,-3642.80508412,0.00023957,2]
[373413923,1752990653174,-831.72560777,0.00023968,2]
[373413924,1752990653185,-568.44568004,0.00023968,2]
[373413925,1752990653195,-874.12,0.00023968,2]
[373413926,1752990653205,-215.71456056,0.00024,7]
[373413927,1752990653214,-160.0,0.00024,7]
[373413928,1752990653224,-230.98123516,0.00024,7]
[373413929,1752990653233,-525.91036056,0.00024,7]
[373413930,1752990653243,-839.59621281,0.00024,7]
[373413931,1752990653252,-160.0,0.00024,7]
[373413932,1752990653261,-160.0,0.00024,7]
[373413933,1752990653271,-151.0,0.00024038,2]
[373413934,1752990653280,-151.0,0.00024038,2]
[373413935,1752990653289,-151.0,0.00024038,2]
[373413936,1752990653298,-152.74147632,0.00024038,2]
[373413937,1752990653308,-151.0,0.00024038,2]
[373413938,1752990653317,-152.46110356,0.00024038,2]
[373413939,1752990653326,-152.51371987,0.00024038,2]
[373413940,1752990653335,-151.0,0.00024038,2]
[373413941,1752990653346,-151.0,0.00024038,2]
[373413942,1752990653356,-151.0,0.00024038,2]
[373413943,1752990653366,-151.0,0.00024038,2]
[373413944,1752990653376,-500.0,0.00024038,2]
[373413945,1752990653385,-151.0,0.00024038,2]
[373413946,1752990653394,-152.46756371,0.00024038,2]
[373413947,1752990653403,-151.0,0.00024038,2]
[373413948,1752990653412,-151.0,0.00024038,2]
[373413949,1752990653422,-500.0,0.00024038,2]
[373413950,1752990653432,-151.0,0.00024038,2]
[373413951,1752990653441,-151.0,0.00024038,2]
[373413952,1752990653450,-151.5580289,0.00024038,2]
[373413953,1752990653541,-152.03810407,0.00024038,2]
[373413954,1752990653551,-151.0,0.00024038,2]
[373413955,1752990653560,-151.0,0.00024038,2]
[373413956,1752990653570,-151.0,0.00024038,2]
[373413957,1752990653581,-151.0,0.00024038,2]
[373413958,1752990653591,-151.0,0.00024038,2]
[373413959,1752990653600,-151.0,0.00024038,2]
[373413960,1752990653609,-151.0,0.00024038,2]
[373413961,1752990653619,-2200.0,0.00024054,2]
[373413962,1752990653629,-500.0,0.0002409,2]
[373413963,1752990653638,-164.00619825,0.0002411,2]
[373413964,1752990653648,-3642.80508412,0.00024126,2]
[373413965,1752990653657,-402.24706456,0.00024173,2]
[373413966,1752990653667,-500.0,0.0002429,2]
[373413967,1752990653676,-3642.80508412,0.00024295,2]
[373413968,1752990653685,-199.0222745,0.00024312,2]
[373413969,1752990653695,-151.0,0.00024312,2]
[373413970,1752990653704,-216.75778794,0.00024312,2]
[373413971,1752990653714,-151.0,0.00024312,2]
[373413972,1752990653723,-275.28329557,0.00024312,2]
[373413973,1752990653732,-151.0,0.00024312,2]
[373413974,1752990653741,-151.0,0.00024312,2]
[373413975,1752990653751,-151.0,0.00024312,2]
[373413976,1752990653760,-500.0,0.00024312,2]
[373413977,1752990653769,-153.0934634,0.00024312,2]
[373413978,1752990653781,-152.85067858,0.00024312,2]
[373413979,1752990653791,-151.0,0.00024312,2]
[373413980,1752990653800,-500.0,0.00024312,2]
[373413981,1752990653809,-151.0,0.00024312,2]
[373413982,1752990653819,-151.9286832,0.00024312,2]
[373413983,1752990653828,-198.28735585,0.00024312,2]
[373413984,1752990653838,-151.0,0.00024312,2]
[373413985,1752990653848,-151.0,0.00024312,2]
[373413986,1752990653857,-151.0,0.00024312,2]
[373413987,1752990653867,-151.0,0.00024312,2]
[373413988,1752990653877,-151.0,0.00024312,2]
[373413989,1752990653887,-500.0,0.00024352,2]
[373413990,1752990653897,-10201.67814316,0.0002439,2]
[373413991,1752990653907,-65203.06,0.000244,2]
[373413992,1752990653916,-6445.0,0.000244,7]
[373413993,1752990653927,-1033.72,0.000244,7]
[373413994,1752990653936,-3243.69,0.000244,7]
[373413995,1752990653946,-225.591571,0.000244,7]
[373413996,1752990653957,-151.0,0.000244,7]
[373413997,1752990653966,-151.0,0.000244,7]
[373413998,1752990653976,-151.558243,0.000244,7]
[373413999,1752990653985,-151.0,0.000244,7]
[373414000,1752990653995,-151.0,0.000244,7]
[373414001,1752990654004,-151.0,0.000244,7]
[373414002,1752990654013,-151.0,0.000244,7]
[373414003,1752990654022,-151.0,0.000244,7]
[373414004,1752990654032,-152.444124,0.000244,7]
[373414005,1752990654041,-151.0,0.000244,7]
[373414006,1752990654050,-168.595311,0.000244,7]
[373414007,1752990654059,-214.986308,0.000244,7]
[373414008,1752990654068,-214.986308,0.000244,7]
[373414009,1752990654078,-151.0,0.000244,7]
[373414010,1752990654087,-172.498184,0.000244,7]
[373414011,1752990654096,-172.498184,0.000244,7]
[373414012,1752990654105,-315.938516,0.00024401,8]
[373414013,1752990654115,-160.0,0.0002445,4]
[373414014,1752990654125,-190.34283325,0.0002445,5]
[373414015,1752990654134,-3642.80508412,0.00024464,2]
[373414016,1752990654143,-200.0,0.000245,2]
[373414017,1752990654152,-152.031018,0.000245,8]
[373414018,1752990654162,-168.0,0.0002451,2]
[373414019,1752990654171,-223.0315306,0.00024542,2]
[373414020,1752990654180,-151.0,0.00024586,2]
[373414021,1752990654189,-151.29090605,0.00024586,2]
[373414022,1752990654198,-500.0,0.00024586,2]
[373414023,1752990654208,-151.0,0.00024586,2]
[373414024,1752990654218,-513.0,0.00024586,2]
[373414025,1752990654227,-151.0,0.00024586,2]
[373414026,1752990654237,-153.67888106,0.00024586,2]
[373414027,1752990654247,-151.0,0.00024586,2]
[373414028,1752990654255,-198.0,0.00024586,2]
[373414029,1752990654264,-168.0,0.00024591,2]
[373414030,1752990654274,-174.0,0.00024591,2]
[373414031,1752990654285,-3642.80508412,0.00024632,2]
[373414032,1752990654294,-168.0,0.00024636,2]
[373414033,1752990654304,-50694.66253477,0.0002465,2]
[373414034,1752990654314,-151.0,0.0002465,7]
[373414035,1752990654323,-152.103192,0.0002465,7]
[373414036,1752990654332,-286.63396331,0.00024657,9]
[373414037,1752990654341,-151.0,0.00024657,7]
[373414038,1752990654351,-151.0,0.00024657,7]
[373414039,1752990654360,-151.0,0.00024657,7]
[373414040,1752990654370,-300.0,0.00024657,2]
[373414041,1752990654379,-300.0,0.00024657,2]
[373414042,1752990654389,-300.0,0.00024657,2]
[373414043,1752990654399,-300.0,0.00024657,2]
[373414044,1752990654408,-300.0,0.00024657,2]
[373414045,1752990654418,-300.0,0.00024657,2]
[373414046,1752990654427,-300.0,0.00024657,2]
[373414047,1752990654436,-300.0,0.00024657,2]
[373414048,1752990654445,-163.59456093,0.00024657,2]
[373414049,1752990654454,-500.0,0.00024657,9]
[373414050,1752990654466,-200.57113702,0.00024658,2]
[373414051,1752990654475,-200.0,0.00024658,2]
[373414052,1752990654484,-380.0,0.00024658,2]
[373414053,1752990654494,-186.02992583,0.00024658,2]
[373414054,1752990654505,-324.4552648,0.00024658,2]
[373414055,1752990654514,-1297.82105918,0.00024658,2]
[373414056,1752990654524,-2920.09738316,0.00024658,2]
[373414057,1752990654534,-5191.28423673,0.00024658,2]
[373414058,1752990654544,-8111.38161988,0.00024658,2]
[373414059,1752990654555,-11668.7091431,0.00024658,2]
[373414060,1752990654565,-725.0,0.00024658,2]
[373414061,1752990654575,-152.031018,0.000247,9]
[373414062,1752990654585,-10454.89972614,0.000247,2]
[373414063,1752990654595,-168.0,0.00024758,2]
[373414064,1752990654605,-12941.5562568,0.00024774,2]
[373414065,1752990654614,-151.775212,0.00024774,7]
[373414066,1752990654623,-800.0,0.00024793,2]
[373414067,1752990654633,-2000.0,0.000248,2]
[373414068,1752990654642,-2000.0,0.000248,2]
[373414069,1752990654652,-2000.0,0.000248,2]
[373414070,1752990654662,-2000.0,0.000248,2]
[373414071,1752990654673,-151.0,0.000248,7]
[373414072,1752990654682,-151.462523,0.000248,7]
[373414073,1752990654691,-150.0,0.000248,5]
[373414074,1752990654700,-151.0,0.000248,7]
[373414075,1752990654710,-151.0,0.000248,7]
[373414076,1752990654720,-153.24464,0.000248,7]
[373414077,1752990654730,-151.0,0.000248,7]
[373414078,1752990654739,-151.0,0.000248,7]
[373414079,1752990654749,-151.0,0.000248,7]
[373414080,1752990654759,-151.0,0.000248,7]
[373414081,1752990654768,-214.986308,0.000248,7]
[373414082,1752990654777,-214.986308,0.000248,7]
[373414083,1752990654790,-151.0,0.000248,7]
[373414084,1752990654807,-172.498184,0.000248,7]
[373414085,1752990654816,-172.498184,0.000248,7]
[373414086,1752990654826,-194.952205,0.000248,7]
[373414087,1752990654835,-50524.42799483,0.000248,2]
[373414088,1752990654919,-6778.83869329,0.000248,2]
[373414089,1752990654932,-500.0,0.000248,2]
[373414090,1752990655049,-258.65595581,0.00017464,2]
[373414091,1752990655058,-109.78167607,0.00019381,2]
[373414092,1752990655069,-1026.26832393,0.00019381,2]
[373414093,1752990655079,-793.8853323,0.00019655,2]
[373414094,1752990655090,-342.1646677,0.00019655,2]
[373414095,1752990655099,-678.89,0.00019757,2]
[373414096,1752990655108,-460.0,0.00019929,2]
[373414097,1752990655117,-1136.05,0.00019929,2]
[373414098,1752990655126,-678.89,0.00020031,2]
[373414099,1752990655136,-430.66,0.00020203,2]
[373414100,1752990655145,-1136.05,0.00020203,2]
[373414101,1752990655154,-678.89,0.00020305,2]
[373414102,1752990655163,-1136.05,0.00020477,2]
[373414103,1752990655172,-1136.05,0.00020751,2]
[373414104,1752990655181,-1136.05,0.00021025,2]
[373414105,1752990655190,-417.607,0.0002341,2]
[373414106,1752990655199,-19683.64666609,0.000248,2]
[373414107,1752990655658,-274.51751388,0.00017463,2]
[373414108,1752990655671,-225.48248612,0.00017463,2]
[373414109,1752990655682,-500.0,0.00017463,2]
[373414110,1752990655693,-385.5605899,0.00017463,2]
[373414111,1752990655702,-83.89794988,0.00017463,2]
[373414112,1752990655715,-416.10205012,0.00017463,2]
[373414113,1752990655725,-500.0,0.00017463,2]
[373414114,1752990655736,-500.0,0.00017463,2]
[373414115,1752990655745,-295.10911489,0.00017463,2]
[373414116,1752990655757,-204.89088511,0.00017463,2]
[373414117,1752990655766,-500.0,0.00017463,2]
[373414118,1752990655776,-500.0,0.00017463,2]
[373414119,1752990655785,-638.59601667,0.00017463,2]
[373414120,1752990655795,-500.0,0.00017463,2]
[373414121,1752990655805,-225.73936814,0.00017463,2]
[373414122,1752990655817,-241.10339114,0.00017463,2]
[373414123,1752990655827,-21.14555686,0.00017463,2]
[373414124,1752990655839,-478.85444314,0.00017463,2]
[373414125,1752990655849,-500.0,0.00017463,2]
[373414126,1752990655859,-500.0,0.00017463,2]
[373414127,1752990655870,-500.0,0.00017463,2]
[373414128,1752990655881,-500.0,0.00017463,2]
[373414129,1752990655894,-500.0,0.00017463,2]
[373414130,1752990655905,-500.0,0.00017463,2]
[373414131,1752990655915,-500.0,0.00017463,2]
[373414132,1752990655926,-500.0,0.00017463,2]
[373414133,1752990655936,-410.09952011,0.00017463,2]
[373414134,1752990655946,-500.0,0.00017463,2]
[373414135,1752990655955,-500.0,0.00017463,2]
[373414136,1752990655965,-500.0,0.00017463,2]
[373414137,1752990655974,-500.0,0.00017463,2]
[373414138,1752990655984,-500.0,0.00017463,2]
[373414139,1752990655993,-500.0,0.00017463,2]
[373414140,1752990656003,-500.0,0.00017463,2]
[373414141,1752990656013,-460.0,0.00017464,2]
[373414142,1752990656023,-678.89,0.00020579,2]
[373414143,1752990656033,-678.89,0.00020853,2]
[373414144,1752990656043,-678.89,0.00021127,2]
[373414145,1752990656054,-1136.05,0.00021299,2]
[373414146,1752990656063,-678.89,0.00021401,2]
[373414147,1752990656074,-1136.05,0.00021573,2]
[373414148,1752990656084,-1136.05,0.00021847,2]
[373414149,1752990656094,-1136.05,0.00022121,2]
[373414150,1752990656103,-1136.05,0.00022395,2]
[373414151,1752990656112,-1136.05,0.00022669,2]
[373414152,1752990656122,-1901.495007,0.000228,2]
[373414153,1752990656131,-1136.05,0.00022943,2]
[373414154,1752990656140,-1136.05,0.00023216,2]
[373414155,1752990656150,-1000.0,0.000233,2]
[373414156,1752990656159,-1136.05,0.0002349,2]
[373414157,1752990656168,-1136.06737197,0.00023764,2]
[373414158,1752990656178,-1000.0,0.000238,2]
[373414159,1752990656187,-722.78630317,0.000243,2]
[373414160,1752990656263,-460.0,0.00017462,2]
[373414161,1752990656273,-460.0,0.00017463,2]
[373414162,1752990656282,-460.0,0.00017736,2]
[373414163,1752990656292,-678.89,0.00021675,2]
[373414164,1752990656302,-678.89,0.00021949,2]
[373414165,1752990656311,-678.89,0.00022223,2]
[373414166,1752990656322,-678.89,0.00022497,2]
[373414167,1752990656331,-678.89,0.00022771,2]
[373414168,1752990656340,-277.21369683,0.000243,2]
[373414169,1752990656350,-22100.29075299,0.000248,2]
[373414170,1752990656359,-194.952205,0.000248,7]
[373414171,1752990656368,-151.0,0.000248,7]
[373414172,1752990656378,-151.0,0.000248,7]
[373414173,1752990656388,-151.0,0.000248,7]
[373414174,1752990656398,-149.00981733,0.000248,7]
[373414175,1752990656412,-149.53755567,0.000248,7]
[373414176,1752990656421,-151.0,0.000248,7]
[373414177,1752990656430,-298.547373,0.000248,7]
[373414178,1752990656439,-152.977185,0.000248,7]
[373414179,1752990656450,-249.683808,0.000248,7]
[373414180,1752990656460,-202.307105,0.000248,7]
[373414181,1752990656470,-249.683808,0.000248,7]
[373414182,1752990656480,-202.307105,0.000248,7]
[373414183,1752990656490,-1000.0,0.000248,2]
[373414184,1752990656503,-395.13089218,0.00024801,2]
[373414185,1752990656520,-756.86910782,0.00024801,2]
[373414186,1752990656529,-3642.80508412,0.00024801,2]
[373414187,1752990656539,-200.0,0.0002481,11]
[373414188,1752990656548,-198.53213712,0.0002486,2]
[373414189,1752990656557,-164.0,0.0002486,2]
[373414190,1752990656567,-198.0,0.0002486,2]
[373414191,1752990656576,-198.0,0.0002486,2]
[373414192,1752990656587,-151.0,0.0002486,2]
[373414193,1752990656597,-150.0,0.00024873,2]
[373414194,1752990656607,-800.0,0.00024892,2]
[373414195,1752990656617,-174.0,0.00024893,2]
[373414196,1752990656626,-923.34118533,0.000249,2]
[373414197,1752990656635,-206.0,0.000249,2]
[373414198,1752990656645,-6736.26789367,0.000249,4]
[373414199,1752990656660,-6863.66724383,0.000249,4]
[373414201,1752990899496,206.447842,0.00016373,2]
[373414217,1752991616119,-215.37030788,0.00017262,2]
[373414222,1752991698402,204.0,0.00027,120]
[373414276,1752991832733,-274.76400997,0.0001726,2]
[373414278,1752991832743,-500.0,0.00017265,2]
[373414280,1752991832752,-447.7397777,0.00017265,2]
[373414282,1752991832761,-735.76695692,0.000173,2]
[373414284,1752991832770,-9165.12925215,0.000173,2]
[373414285,1752991832779,-300.0,0.00017354,2]
[373414286,1752991832790,-1200.0,0.00017354,2]
[373414288,1752991832800,-333.01,0.00017354,3]
[373414291,1752991832810,-166.51,0.00017354,3]
[373414293,1752991832818,-499.54,0.00017354,3]
[373414294,1752991832827,-666.02,0.00017355,3]
[373414296,1752991832836,-816.7,0.00017355,3]
[373414298,1752991832847,-34890.32562422,0.00017355,2]
[373414300,1752991832862,-460.0,0.0001736,2]
[373414301,1752991832871,-460.0,0.0001736,2]
[373414302,1752991832881,-460.0,0.0001736,2]
[373414303,1752991832890,-460.0,0.0001736,2]
[373414304,1752991832899,-460.0,0.0001736,2]
[373414305,1752991832908,-598.42378376,0.0001736,2]
[373414306,1752991832918,-460.0,0.0001736,2]
[373414307,1752991832928,-460.0,0.0001736,2]
[373414308,1752991832937,-659.61,0.0001736,2]
[373414309,1752991832946,-460.0,0.0001736,2]
[373414310,1752991832955,-460.0,0.0001736,2]
[373414311,1752991832965,-284.92814163,0.00017361,2]
[373414312,1752991832975,-460.0,0.00017361,2]
[373414313,1752991832984,-431.33258806,0.00017361,2]
[373414314,1752991832993,-460.0,0.00017361,2]
[373414315,1752991833002,-500.0,0.00017361,2]
[373414316,1752991833011,-500.0,0.00017361,2]
[373414317,1752991833021,-482.52503496,0.00017361,2]
[373414318,1752991833030,-460.0,0.00017361,2]
[373414319,1752991833040,-460.0,0.00017361,2]
[373414320,1752991833049,-460.0,0.00017361,2]
[373414321,1752991833058,-460.0,0.00017361,2]
[373414322,1752991833067,-460.0,0.00017361,2]
[373414323,1752991833076,-460.0,0.00017361,2]
[373414324,1752991833085,-859.08,0.00017361,2]
[373414325,1752991833095,-460.0,0.00017361,2]
[373414326,1752991833104,-460.0,0.00017361,2]
[373414327,1752991833113,-460.0,0.00017361,2]
[373414328,1752991833123,-460.0,0.00017361,2]
[373414329,1752991833132,-460.0,0.00017361,2]
[373414330,1752991833291,-460.0,0.00017361,2]
[373414331,1752991833301,-460.0,0.00017361,2]
[373414332,1752991833311,-460.0,0.00017361,2]
[373414333,1752991833321,-460.0,0.00017361,2]
[373414334,1752991833330,-460.0,0.00017361,2]
[373414335,1752991833340,-460.0,0.00017361,2]
[373414336,1752991833349,-1544.74,0.00017361,2]
[373414337,1752991833359,-460.0,0.00017361,2]
[373414338,1752991833369,-460.0,0.00017361,2]
[373414339,1752991833379,-460.0,0.00017361,2]
[373414340,1752991833388,-460.0,0.00017362,2]
[373414341,1752991833398,-460.0,0.00017362,2]
[373414342,1752991833408,-460.0,0.00017362,2]
[373414343,1752991833419,-461.98577131,0.00017362,2]
[373414344,1752991833428,-380.99330358,0.00017362,2]
[373414345,1752991833438,-460.0,0.00017362,2]
[373414346,1752991833447,-460.0,0.00017362,2]
[373414347,1752991833457,-460.0,0.00017362,2]
[373414348,1752991833467,-460.0,0.00017362,2]